[Event "Titled Tuesday Blitz March 01 Late 2022"]
[White "Kanyamarala, Trisha"]
[Black "Thavandiran, Shiyam"]
[WhiteFideId "45004722"]
[BlackFideId "2605058"]
[WhiteElo "2002"]
[BlackElo "2357"]
[Result "0-1"]
[Round "01"]
[TimeControl "180+1"]
[Date "2022.03.02"]
[WhiteClock "0:00:02"]
[BlackClock "0:01:05"]

1. c4 {[%clk 0:02:56]}  c5 {[%clk 0:01:48]} 2. Nc3 {[%clk 0:02:52]}  Nf6 {[%clk 0:01:48]} 3. Nf3 {[%clk 0:02:52]}  e6 {[%clk 0:01:49]} 4. g3 {[%clk 0:02:52]}  a6 {[%clk 0:01:49]} 5. Bg2 {[%clk 0:02:52]}  Qc7 {[%clk 0:01:50]} 6. O-O {[%clk 0:02:51]}  d6 {[%clk 0:01:51]} 7. d3 {[%clk 0:02:45]}  Be7 {[%clk 0:01:51]} 8. a3 {[%clk 0:02:45]}  b6 {[%clk 0:01:51]} 9. Rb1 {[%clk 0:02:39]}  Bb7 {[%clk 0:01:51]} 10. b4 {[%clk 0:02:39]}  Nbd7 {[%clk 0:01:52]} 11. b5 {[%clk 0:02:15]}  a5 {[%clk 0:01:51]} 12. e4 {[%clk 0:02:11]}  O-O {[%clk 0:01:51]} 13. a4 {[%clk 0:02:10]}  Rad8 {[%clk 0:01:49]} 14. Re1 {[%clk 0:02:05]}  Rfe8 {[%clk 0:01:49]} 15. h3 {[%clk 0:02:00]}  Bf8 {[%clk 0:01:49]} 16. Bf4 {[%clk 0:01:53]}  g6 {[%clk 0:01:45]} 17. Qc2 {[%clk 0:01:33]}  Bg7 {[%clk 0:01:44]} 18. g4 {[%clk 0:01:32]}  h6 {[%clk 0:01:44]} 19. Ne2 {[%clk 0:01:28]}  Ne5 {[%clk 0:01:44]} 20. Nxe5 {[%clk 0:01:26]}  dxe5 {[%clk 0:01:45]} 21. Bg3 {[%clk 0:01:26]}  Qd6 {[%clk 0:01:43]} 22. Rbd1 {[%clk 0:01:25]}  Rd7 {[%clk 0:01:43]} 23. Qc3 {[%clk 0:01:16]}  Nh7 {[%clk 0:01:43]} 24. Kh1 {[%clk 0:01:09]}  Red8 {[%clk 0:01:43]} 25. Rd2 {[%clk 0:01:09]}  Nf8 {[%clk 0:01:44]} 26. Ng1 {[%clk 0:01:08]}  g5 {[%clk 0:01:42]} 27. Nf3 {[%clk 0:01:07]}  Ng6 {[%clk 0:01:43]} 28. Ng1 {[%clk 0:01:00]}  Nf4 {[%clk 0:01:42]} 29. Bxf4 {[%clk 0:00:59]}  exf4 {[%clk 0:01:43]} 30. e5 {[%clk 0:00:42]}  Bxg2+ {[%clk 0:01:42]} 31. Kxg2 {[%clk 0:00:40]}  Qd4 {[%clk 0:01:43]} 32. Qxd4 {[%clk 0:00:38]}  Rxd4 {[%clk 0:01:44]} 33. Red1 {[%clk 0:00:31]}  Kf8 {[%clk 0:01:39]} 34. Nf3 {[%clk 0:00:31]}  R4d7 {[%clk 0:01:39]} 35. d4 {[%clk 0:00:22]}  cxd4 {[%clk 0:01:38]} 36. Rxd4 {[%clk 0:00:22]}  Rxd4 {[%clk 0:01:37]} 37. Rxd4 {[%clk 0:00:15]}  Rxd4 {[%clk 0:01:37]} 38. Nxd4 {[%clk 0:00:16]}  Bxe5 {[%clk 0:01:37]} 39. Nb3 {[%clk 0:00:14]}  Ke7 {[%clk 0:01:22]} 40. c5 {[%clk 0:00:14]}  bxc5 {[%clk 0:01:21]} 41. Nxc5 {[%clk 0:00:14]}  Bc7 {[%clk 0:01:16]} 42. Nd3 {[%clk 0:00:05]}  Kd6 {[%clk 0:01:15]} 43. Kf3 {[%clk 0:00:05]}  Kd5 {[%clk 0:01:15]} 44. Ke2 {[%clk 0:00:04]}  Kc4 {[%clk 0:01:16]} 45. Kd2 {[%clk 0:00:03]}  Bb6 {[%clk 0:01:11]} 46. f3 {[%clk 0:00:02]}  Kb3 {[%clk 0:01:11]} 47. Ne5 {[%clk 0:00:01]}  Kxa4 {[%clk 0:01:10]} 48. Nxf7 {[%clk 0:00:02]}  Kxb5 {[%clk 0:01:08]} 49. Nxh6 {[%clk 0:00:02]}  Bd8 {[%clk 0:01:09]} 50. Nf7 {[%clk 0:00:02]}  Be7 {[%clk 0:01:07]} 51. Kc2 {[%clk 0:00:03]}  a4 {[%clk 0:01:07]} 52. Ne5 {[%clk 0:00:02]}  Kc5 {[%clk 0:01:05]} 53. Nd3+ {[%clk 0:00:02]}  Kd4 {[%clk 0:01:05]} 0-1


[Site "https://www.chess.com"]

[Event "Titled Tuesday Blitz March 01 Late 2022"]
[White "Kevlishvili, Robby"]
[Black "Migot, Tangi"]
[WhiteFideId "1040634"]
[BlackFideId "662445"]
[WhiteElo "2584"]
[BlackElo "2506"]
[Result "1/2-1/2"]
[Round "01"]
[TimeControl "180+1"]
[Date "2022.03.01"]
[WhiteClock "0:00:41"]
[BlackClock "0:00:46"]

1. e4 {[%clk 0:02:58]}  e5 {[%clk 0:03:00]} 2. Nf3 {[%clk 0:02:56]}  d6 {[%clk 0:03:01]} 3. d4 {[%clk 0:02:56]}  exd4 {[%clk 0:03:01]} 4. Nxd4 {[%clk 0:02:54]}  Nf6 {[%clk 0:03:02]} 5. Nc3 {[%clk 0:02:54]}  Be7 {[%clk 0:03:03]} 6. g3 {[%clk 0:02:52]}  O-O {[%clk 0:03:03]} 7. Bg2 {[%clk 0:02:52]}  Nc6 {[%clk 0:03:02]} 8. O-O {[%clk 0:02:53]}  Nxd4 {[%clk 0:03:02]} 9. Qxd4 {[%clk 0:02:52]}  c6 {[%clk 0:03:02]} 10. a4 {[%clk 0:02:51]}  Qb6 {[%clk 0:02:59]} 11. Qxb6 {[%clk 0:02:50]}  axb6 {[%clk 0:02:59]} 12. Be3 {[%clk 0:02:50]}  Nd7 {[%clk 0:02:58]} 13. Rad1 {[%clk 0:02:47]}  Nc5 {[%clk 0:02:53]} 14. b3 {[%clk 0:02:47]}  f5 {[%clk 0:02:52]} 15. Rfe1 {[%clk 0:02:44]}  fxe4 {[%clk 0:02:36]} 16. Nxe4 {[%clk 0:02:43]}  Nxe4 {[%clk 0:02:34]} 17. Bxe4 {[%clk 0:02:43]}  d5 {[%clk 0:02:32]} 18. Bg2 {[%clk 0:02:39]}  Bb4 {[%clk 0:02:25]} 19. Bd2 {[%clk 0:02:32]}  Bc5 {[%clk 0:02:20]} 20. Be3 {[%clk 0:02:20]}  Bb4 {[%clk 0:02:17]} 21. Rf1 {[%clk 0:02:21]}  Bf5 {[%clk 0:02:09]} 22. Rc1 {[%clk 0:02:17]}  Ba3 {[%clk 0:02:03]} 23. Bxb6 {[%clk 0:02:15]}  Bxc1 {[%clk 0:02:01]} 24. Rxc1 {[%clk 0:02:16]}  Rfe8 {[%clk 0:02:01]} 25. Kf1 {[%clk 0:02:15]}  g6 {[%clk 0:01:51]} 26. Bf3 {[%clk 0:02:10]}  Bh3+ {[%clk 0:01:46]} 27. Kg1 {[%clk 0:02:10]}  Rf8 {[%clk 0:01:46]} 28. Be2 {[%clk 0:02:09]}  Rae8 {[%clk 0:01:44]} 29. Bd3 {[%clk 0:02:09]}  Rf7 {[%clk 0:01:33]} 30. Bc5 {[%clk 0:02:06]}  Rf6 {[%clk 0:01:30]} 31. f4 {[%clk 0:02:02]}  Rfe6 {[%clk 0:01:28]} 32. Kf2 {[%clk 0:02:02]}  Bf5 {[%clk 0:01:19]} 33. Bf1 {[%clk 0:02:00]}  h5 {[%clk 0:01:19]} 34. Bd4 {[%clk 0:01:58]}  Kf7 {[%clk 0:01:14]} 35. b4 {[%clk 0:01:54]}  h4 {[%clk 0:01:14]} 36. a5 {[%clk 0:01:52]}  g5 {[%clk 0:01:09]} 37. fxg5 {[%clk 0:01:50]}  h3 {[%clk 0:01:03]} 38. c4 {[%clk 0:01:46]}  Re4 {[%clk 0:00:52]} 39. Bf6 {[%clk 0:01:43]}  dxc4 {[%clk 0:00:47]} 40. Bxc4+ {[%clk 0:01:38]}  Kg6 {[%clk 0:00:47]} 41. b5 {[%clk 0:01:34]}  cxb5 {[%clk 0:00:42]} 42. Bxb5 {[%clk 0:01:35]}  Rc8 {[%clk 0:00:42]} 43. Rxc8 {[%clk 0:01:33]}  Bxc8 {[%clk 0:00:43]} 44. Bd3 {[%clk 0:01:28]}  Bf5 {[%clk 0:00:44]} 45. Bxe4 {[%clk 0:00:55]}  Bxe4 {[%clk 0:00:45]} 46. g4 {[%clk 0:00:53]}  Bg2 {[%clk 0:00:44]} 47. Kg3 {[%clk 0:00:53]}  Bf1 {[%clk 0:00:44]} 48. Kh4 {[%clk 0:00:53]}  Bg2 {[%clk 0:00:44]} 49. Bd4 {[%clk 0:00:51]}  Bf1 {[%clk 0:00:43]} 50. Be3 {[%clk 0:00:51]}  Bg2 {[%clk 0:00:43]} 51. Kg3 {[%clk 0:00:52]}  Bf1 {[%clk 0:00:43]} 52. Kf4 {[%clk 0:00:53]}  Bg2 {[%clk 0:00:43]} 53. Bd2 {[%clk 0:00:52]}  Bf1 {[%clk 0:00:43]} 54. Kf3 {[%clk 0:00:49]}  Bg2+ {[%clk 0:00:43]} 55. Kf2 {[%clk 0:00:49]}  Kf7 {[%clk 0:00:42]} 56. Bf4 {[%clk 0:00:48]}  Kg6 {[%clk 0:00:42]} 57. Ke3 {[%clk 0:00:49]}  Kf7 {[%clk 0:00:42]} 58. Kd4 {[%clk 0:00:49]}  Kg6 {[%clk 0:00:43]} 59. Ke3 {[%clk 0:00:49]}  Bf1 {[%clk 0:00:42]} 60. Kf3 {[%clk 0:00:46]}  Bg2+ {[%clk 0:00:43]} 61. Kg3 {[%clk 0:00:46]}  Kf7 {[%clk 0:00:43]} 62. Kh4 {[%clk 0:00:47]}  Kg6 {[%clk 0:00:43]} 63. Bd2 {[%clk 0:00:47]}  Bf1 {[%clk 0:00:43]} 64. Kg3 {[%clk 0:00:46]}  Bg2 {[%clk 0:00:44]} 65. Kf4 {[%clk 0:00:47]}  Bf1 {[%clk 0:00:44]} 66. Ke5 {[%clk 0:00:46]}  Bg2 {[%clk 0:00:44]} 67. Kd6 {[%clk 0:00:46]}  Bf1 {[%clk 0:00:45]} 68. Kc7 {[%clk 0:00:46]}  Bg2 {[%clk 0:00:45]} 69. Be3 {[%clk 0:00:45]}  Kf7 {[%clk 0:00:45]} 70. Kd6 {[%clk 0:00:44]}  Kg6 {[%clk 0:00:46]} 71. Ke7 {[%clk 0:00:44]}  Bf1 {[%clk 0:00:46]} 72. Ke6 {[%clk 0:00:42]}  Bg2 {[%clk 0:00:46]} 73. Ke5 {[%clk 0:00:42]}  Bf1 {[%clk 0:00:46]} 74. Kd5 {[%clk 0:00:42]}  Bg2+ {[%clk 0:00:46]} 75. Kc5 {[%clk 0:00:43]}  Bf1 {[%clk 0:00:46]} 76. Kb6 {[%clk 0:00:42]}  Bg2 {[%clk 0:00:46]} 77. Bd2 {[%clk 0:00:42]}  Kf7 {[%clk 0:00:46]} 78. Kc7 {[%clk 0:00:41]}  Kg6 {[%clk 0:00:46]} 79. Kd6 {[%clk 0:00:41]}  Kf7 {[%clk 0:00:46]} 80. Ke5 {[%clk 0:00:41]}  Kg6 {[%clk 0:00:46]} 81. Kf4 {[%clk 0:00:41]} 1/2-1/2


[Site "https://www.chess.com"]

[Event "Titled Tuesday Blitz March 01 Late 2022"]
[White "Kim, Sergey"]
[Black "Prohorov, Olexandr"]
[WhiteFideId "13700570"]
[BlackFideId "14105578"]
[WhiteElo "2624"]
[BlackElo "1993"]
[Result "1-0"]
[Round "01"]
[TimeControl "180+1"]
[Date "2022.03.02"]
[WhiteClock "0:02:44"]
[BlackClock "0:02:27"]

1. d4 {[%clk 0:03:00]}  g6 {[%clk 0:02:56]} 2. c4 {[%clk 0:03:00]}  Bg7 {[%clk 0:02:55]} 3. Nc3 {[%clk 0:03:01]}  c5 {[%clk 0:02:55]} 4. d5 {[%clk 0:03:01]}  Bxc3+ {[%clk 0:02:55]} 5. bxc3 {[%clk 0:03:01]}  f5 {[%clk 0:02:56]} 6. h4 {[%clk 0:03:00]}  Qa5 {[%clk 0:02:57]} 7. Qd3 {[%clk 0:02:55]}  Nf6 {[%clk 0:02:56]} 8. h5 {[%clk 0:02:56]}  Rg8 {[%clk 0:02:54]} 9. hxg6 {[%clk 0:02:55]}  hxg6 {[%clk 0:02:55]} 10. Bg5 {[%clk 0:02:52]}  Ne4 {[%clk 0:02:53]} 11. Nf3 {[%clk 0:02:53]}  d6 {[%clk 0:02:49]} 12. Rh7 {[%clk 0:02:51]}  e5 {[%clk 0:02:28]} 13. dxe6 {[%clk 0:02:47]}  Bxe6 {[%clk 0:02:28]} 14. Re7+ {[%clk 0:02:46]}  Kf8 {[%clk 0:02:27]} 15. Rxe6 {[%clk 0:02:44]} 1-0


[Site "https://www.chess.com"]

[Event "Titled Tuesday Blitz March 01 Late 2022"]
[White "Kopczynski, Michal"]
[Black "Abdrlauf, Elham"]
[WhiteFideId "1124200"]
[BlackFideId "1533533"]
[WhiteElo "2235"]
[BlackElo "2334"]
[Result "0-1"]
[Round "01"]
[TimeControl "180+1"]
[Date "2022.03.01"]
[WhiteClock "0:00:08"]
[BlackClock "0:00:04"]

1. e4 {[%clk 0:02:58]}  d6 {[%clk 0:02:57]} 2. d4 {[%clk 0:02:58]}  Nf6 {[%clk 0:02:57]} 3. Nc3 {[%clk 0:02:59]}  g6 {[%clk 0:02:58]} 4. Bg5 {[%clk 0:02:59]}  Bg7 {[%clk 0:02:58]} 5. Qd2 {[%clk 0:02:59]}  O-O {[%clk 0:02:59]} 6. O-O-O {[%clk 0:02:59]}  c5 {[%clk 0:02:58]} 7. dxc5 {[%clk 0:02:54]}  Qa5 {[%clk 0:02:57]} 8. cxd6 {[%clk 0:02:50]}  exd6 {[%clk 0:02:24]} 9. Bc4 {[%clk 0:02:43]}  Nc6 {[%clk 0:02:07]} 10. Bxf6 {[%clk 0:02:10]}  Bxf6 {[%clk 0:02:08]} 11. Nd5 {[%clk 0:02:10]}  Qxd2+ {[%clk 0:01:57]} 12. Rxd2 {[%clk 0:02:00]}  Bg7 {[%clk 0:01:57]} 13. f4 {[%clk 0:01:53]}  Be6 {[%clk 0:01:45]} 14. Nf3 {[%clk 0:01:49]}  Rac8 {[%clk 0:01:44]} 15. Bb3 {[%clk 0:01:47]}  Rfe8 {[%clk 0:01:41]} 16. Rhd1 {[%clk 0:01:39]}  Kf8 {[%clk 0:01:18]} 17. Kb1 {[%clk 0:01:37]}  Na5 {[%clk 0:01:18]} 18. Nd4 {[%clk 0:01:13]}  Bg4 {[%clk 0:01:10]} 19. Re1 {[%clk 0:01:06]}  Nc4 {[%clk 0:01:09]} 20. Bxc4 {[%clk 0:00:50]}  Rxc4 {[%clk 0:01:09]} 21. c3 {[%clk 0:00:30]}  f5 {[%clk 0:01:08]} 22. Ne3 {[%clk 0:00:18]}  Rxe4 {[%clk 0:01:04]} 23. Nxc4 {[%clk 0:00:17]}  Rxe1+ {[%clk 0:01:04]} 24. Kc2 {[%clk 0:00:18]}  Ke7 {[%clk 0:00:55]} 25. Nb5 {[%clk 0:00:18]}  Bh6 {[%clk 0:00:39]} 26. g3 {[%clk 0:00:18]}  g5 {[%clk 0:00:39]} 27. fxg5 {[%clk 0:00:13]}  Bxg5 {[%clk 0:00:40]} 28. Rf2 {[%clk 0:00:13]}  d5 {[%clk 0:00:28]} 29. Ncd6 {[%clk 0:00:11]}  Ke6 {[%clk 0:00:11]} 30. Nxb7 {[%clk 0:00:09]}  Rc1+ {[%clk 0:00:06]} 31. Kb3 {[%clk 0:00:08]}  Be7 {[%clk 0:00:07]} 32. Nd4+ {[%clk 0:00:08]}  Kf6 {[%clk 0:00:07]} 33. Rd2 {[%clk 0:00:05]}  h5 {[%clk 0:00:05]} 34. a4 {[%clk 0:00:03]}  Bd1+ {[%clk 0:00:03]} 35. Ka2 {[%clk 0:00:02]}  h4 {[%clk 0:00:04]} 36. Nc6 {[%clk 0:00:02]}  h3 {[%clk 0:00:03]} 37. Nxe7 {[%clk 0:00:02]}  Kxe7 {[%clk 0:00:04]} 38. Na5 {[%clk 0:00:02]}  Bf3 {[%clk 0:00:03]} 39. Nc6+ {[%clk 0:00:02]}  Kf6 {[%clk 0:00:04]} 40. Nd4 {[%clk 0:00:03]}  Be4 {[%clk 0:00:04]} 41. Rf2 {[%clk 0:00:04]}  Rg1 {[%clk 0:00:05]} 42. Kb3 {[%clk 0:00:03]}  Rg2 {[%clk 0:00:05]} 43. Rxg2 {[%clk 0:00:03]}  hxg2 {[%clk 0:00:06]} 44. Ne2 {[%clk 0:00:04]}  Kg5 {[%clk 0:00:06]} 45. Ng1 {[%clk 0:00:04]}  f4 {[%clk 0:00:05]} 46. gxf4+ {[%clk 0:00:04]}  Kxf4 {[%clk 0:00:06]} 47. h4 {[%clk 0:00:05]}  Ke3 {[%clk 0:00:05]} 48. h5 {[%clk 0:00:05]}  Kf2 {[%clk 0:00:03]} 49. Nh3+ {[%clk 0:00:04]}  Kg3 {[%clk 0:00:03]} 50. Ng1 {[%clk 0:00:05]}  Kh2 {[%clk 0:00:03]} 51. Ne2 {[%clk 0:00:05]}  Bd3 {[%clk 0:00:02]} 52. Nd4 {[%clk 0:00:05]}  Kh3 {[%clk 0:00:01]} 53. Nf3 {[%clk 0:00:06]}  Kg3 {[%clk 0:00:02]} 54. Ng1 {[%clk 0:00:06]}  Bf5 {[%clk 0:00:03]} 55. h6 {[%clk 0:00:06]}  Kf2 {[%clk 0:00:02]} 56. Nh3+ {[%clk 0:00:06]}  Kg3 {[%clk 0:00:02]} 57. h7 {[%clk 0:00:07]}  Bxh7 {[%clk 0:00:03]} 58. Ng1 {[%clk 0:00:07]}  Bf5 {[%clk 0:00:03]} 59. Ne2+ {[%clk 0:00:07]}  Kf3 {[%clk 0:00:03]} 60. Nd4+ {[%clk 0:00:07]}  Kf2 {[%clk 0:00:03]} 61. Nxf5 {[%clk 0:00:06]}  g1=Q {[%clk 0:00:04]} 62. Nd4 {[%clk 0:00:07]}  Qd1+ {[%clk 0:00:04]} 63. Kb4 {[%clk 0:00:07]}  Ke3 {[%clk 0:00:05]} 64. b3 {[%clk 0:00:08]}  Kd3 {[%clk 0:00:05]} 65. Nc6 {[%clk 0:00:07]}  Qe1 {[%clk 0:00:04]} 66. Kb5 {[%clk 0:00:05]}  Qxc3 {[%clk 0:00:04]} 67. b4 {[%clk 0:00:06]}  Qc4+ {[%clk 0:00:03]} 68. Ka5 {[%clk 0:00:06]}  Qxc6 {[%clk 0:00:03]} 69. b5 {[%clk 0:00:07]}  Qb6+ {[%clk 0:00:04]} 70. Kb4 {[%clk 0:00:07]}  Kc2 {[%clk 0:00:03]} 71. a5 {[%clk 0:00:08]}  Qd4+ {[%clk 0:00:04]} 72. Ka3 {[%clk 0:00:08]}  Qc3+ {[%clk 0:00:04]} 73. Ka4 {[%clk 0:00:08]}  Qb3# {[%clk 0:00:04]} 0-1


[Site "https://www.chess.com"]

[Event "Titled Tuesday Blitz March 01 Late 2022"]
[White "Leenhouts, Koen"]
[Black "Urazayev, Arystanbek"]
[WhiteFideId "1008439"]
[BlackFideId "13709810"]
[WhiteElo "2409"]
[BlackElo "2321"]
[Result "0-1"]
[Round "01"]
[TimeControl "180+1"]
[Date "2022.03.01"]
[WhiteClock "0:00:05"]
[BlackClock "0:00:30"]

1. d4 {[%clk 0:02:59]}  d5 {[%clk 0:02:59]} 2. c4 {[%clk 0:02:58]}  dxc4 {[%clk 0:03:00]} 3. Nf3 {[%clk 0:02:56]}  Nf6 {[%clk 0:03:00]} 4. e3 {[%clk 0:02:56]}  e6 {[%clk 0:03:01]} 5. Bxc4 {[%clk 0:02:55]}  c5 {[%clk 0:03:01]} 6. O-O {[%clk 0:02:55]}  Nc6 {[%clk 0:03:02]} 7. Nc3 {[%clk 0:02:53]}  a6 {[%clk 0:03:02]} 8. Bb3 {[%clk 0:02:51]}  Be7 {[%clk 0:03:01]} 9. dxc5 {[%clk 0:02:49]}  Bxc5 {[%clk 0:02:59]} 10. e4 {[%clk 0:02:42]}  Qxd1 {[%clk 0:02:58]} 11. Rxd1 {[%clk 0:02:37]}  Ng4 {[%clk 0:02:57]} 12. Rf1 {[%clk 0:02:35]}  Ke7 {[%clk 0:02:56]} 13. h3 {[%clk 0:02:32]}  Nge5 {[%clk 0:02:56]} 14. Nxe5 {[%clk 0:02:30]}  Nxe5 {[%clk 0:02:57]} 15. Na4 {[%clk 0:02:26]}  Ba7 {[%clk 0:02:56]} 16. Bd2 {[%clk 0:02:26]}  b5 {[%clk 0:02:40]} 17. Bb4+ {[%clk 0:02:22]}  Kf6 {[%clk 0:02:40]} 18. Nc3 {[%clk 0:02:10]}  Bb7 {[%clk 0:02:38]} 19. Kh2 {[%clk 0:01:51]}  Nd3 {[%clk 0:02:37]} 20. Bd6 {[%clk 0:01:46]}  Bb8 {[%clk 0:02:19]} 21. Bxb8 {[%clk 0:01:38]}  Raxb8 {[%clk 0:02:19]} 22. Rad1 {[%clk 0:01:27]}  Nxb2 {[%clk 0:02:16]} 23. Rd7 {[%clk 0:01:26]}  b4 {[%clk 0:02:14]} 24. e5+ {[%clk 0:01:07]}  Kxe5 {[%clk 0:02:13]} 25. Nd1 {[%clk 0:01:05]}  Nxd1 {[%clk 0:02:10]} 26. Rfxd1 {[%clk 0:01:06]}  Kf6 {[%clk 0:01:46]} 27. R1d4 {[%clk 0:01:05]}  g5 {[%clk 0:01:46]} 28. Rxb4 {[%clk 0:01:00]}  Bc6 {[%clk 0:01:47]} 29. Rxb8 {[%clk 0:00:56]}  Rxb8 {[%clk 0:01:48]} 30. Ra7 {[%clk 0:00:56]}  Bb5 {[%clk 0:01:48]} 31. Kg3 {[%clk 0:00:52]}  Rc8 {[%clk 0:01:35]} 32. h4 {[%clk 0:00:45]}  h6 {[%clk 0:01:35]} 33. hxg5+ {[%clk 0:00:44]}  hxg5 {[%clk 0:01:36]} 34. f3 {[%clk 0:00:33]}  Rd8 {[%clk 0:01:27]} 35. Rc7 {[%clk 0:00:32]}  Rd7 {[%clk 0:01:23]} 36. Rc5 {[%clk 0:00:28]}  Kg6 {[%clk 0:01:22]} 37. Kg4 {[%clk 0:00:25]}  f5+ {[%clk 0:01:22]} 38. Kg3 {[%clk 0:00:25]}  Kf6 {[%clk 0:01:18]} 39. a4 {[%clk 0:00:25]}  Bf1 {[%clk 0:01:17]} 40. Rc6 {[%clk 0:00:25]}  Rd2 {[%clk 0:01:03]} 41. Rxe6+ {[%clk 0:00:23]}  Kg7 {[%clk 0:01:03]} 42. Re7+ {[%clk 0:00:21]}  Kf8 {[%clk 0:00:55]} 43. Rf7+ {[%clk 0:00:21]}  Ke8 {[%clk 0:00:56]} 44. Kh2 {[%clk 0:00:17]}  Rxg2+ {[%clk 0:00:55]} 45. Kh1 {[%clk 0:00:16]}  Rb2 {[%clk 0:00:56]} 46. Bd5 {[%clk 0:00:15]}  Bd3 {[%clk 0:00:53]} 47. Rg7 {[%clk 0:00:12]}  Rb4 {[%clk 0:00:42]} 48. Rxg5 {[%clk 0:00:11]}  Ke7 {[%clk 0:00:43]} 49. a5 {[%clk 0:00:09]}  Rb5 {[%clk 0:00:41]} 50. Bc6 {[%clk 0:00:06]}  Rxa5 {[%clk 0:00:41]} 51. Kg2 {[%clk 0:00:06]}  Kf6 {[%clk 0:00:40]} 52. Rg8 {[%clk 0:00:05]}  Rc5 {[%clk 0:00:39]} 53. Rc8 {[%clk 0:00:06]}  Bb5 {[%clk 0:00:32]} 54. Bb7 {[%clk 0:00:05]}  Rxc8 {[%clk 0:00:32]} 55. Bxc8 {[%clk 0:00:06]}  f4 {[%clk 0:00:31]} 56. Kf2 {[%clk 0:00:06]}  Ke5 {[%clk 0:00:31]} 57. Ke1 {[%clk 0:00:06]}  Kd4 {[%clk 0:00:31]} 58. Kd2 {[%clk 0:00:06]}  a5 {[%clk 0:00:32]} 59. Bg4 {[%clk 0:00:05]}  Bc6 {[%clk 0:00:31]} 60. Kc2 {[%clk 0:00:06]}  Ke3 {[%clk 0:00:31]} 61. Kb2 {[%clk 0:00:06]}  Bxf3 {[%clk 0:00:32]} 62. Bf5 {[%clk 0:00:06]}  Bc6 {[%clk 0:00:31]} 63. Bg4 {[%clk 0:00:06]}  Bf3 {[%clk 0:00:28]} 64. Bf5 {[%clk 0:00:07]}  Bh5 {[%clk 0:00:29]} 65. Bh3 {[%clk 0:00:05]}  f3 {[%clk 0:00:29]} 66. Bf1 {[%clk 0:00:06]}  f2 {[%clk 0:00:29]} 67. Bb5 {[%clk 0:00:05]}  Be2 {[%clk 0:00:30]} 0-1


[Site "https://www.chess.com"]

[Event "Titled Tuesday Blitz March 01 Late 2022"]
[White "Levine, David"]
[Black "Sargsyan, Anna M."]
[WhiteFideId "2011611"]
[BlackFideId "13308130"]
[WhiteElo "2130"]
[BlackElo "2271"]
[Result "0-1"]
[Round "01"]
[TimeControl "180+1"]
[Date "2022.03.02"]
[WhiteClock "0:00:17"]
[BlackClock "0:01:38"]

1. d4 {[%clk 0:02:59]}  d5 {[%clk 0:02:59]} 2. c4 {[%clk 0:02:59]}  c6 {[%clk 0:02:55]} 3. Nf3 {[%clk 0:02:58]}  Nf6 {[%clk 0:02:55]} 4. Qc2 {[%clk 0:02:58]}  dxc4 {[%clk 0:02:55]} 5. Qxc4 {[%clk 0:02:57]}  Bf5 {[%clk 0:02:55]} 6. g3 {[%clk 0:02:56]}  e6 {[%clk 0:02:56]} 7. Bg2 {[%clk 0:02:56]}  Nbd7 {[%clk 0:02:56]} 8. O-O {[%clk 0:02:55]}  Be7 {[%clk 0:02:57]} 9. Nc3 {[%clk 0:02:48]}  O-O {[%clk 0:02:57]} 10. Bf4 {[%clk 0:02:47]}  h6 {[%clk 0:02:54]} 11. Rfe1 {[%clk 0:02:43]}  Ne4 {[%clk 0:02:47]} 12. Rad1 {[%clk 0:02:34]}  Nb6 {[%clk 0:02:45]} 13. Qb3 {[%clk 0:02:33]}  a5 {[%clk 0:02:40]} 14. Nxe4 {[%clk 0:02:08]}  Bxe4 {[%clk 0:02:41]} 15. Ne5 {[%clk 0:02:03]}  a4 {[%clk 0:02:38]} 16. Qc3 {[%clk 0:01:56]}  Bxg2 {[%clk 0:02:34]} 17. Kxg2 {[%clk 0:01:56]}  Qd5+ {[%clk 0:02:33]} 18. f3 {[%clk 0:01:54]}  Qxa2 {[%clk 0:02:33]} 19. e4 {[%clk 0:01:52]}  a3 {[%clk 0:02:31]} 20. Rd2 {[%clk 0:01:41]}  Na4 {[%clk 0:02:30]} 21. Qc4 {[%clk 0:01:29]}  Qxc4 {[%clk 0:02:26]} 22. Nxc4 {[%clk 0:01:29]}  Bb4 {[%clk 0:02:07]} 23. bxa3 {[%clk 0:01:24]}  Bxd2 {[%clk 0:02:07]} 24. Bxd2 {[%clk 0:01:24]}  Rfd8 {[%clk 0:02:08]} 25. Be3 {[%clk 0:01:11]}  f6 {[%clk 0:02:03]} 26. Rb1 {[%clk 0:01:09]}  b5 {[%clk 0:02:03]} 27. Nd2 {[%clk 0:01:04]}  e5 {[%clk 0:01:51]} 28. dxe5 {[%clk 0:01:00]}  fxe5 {[%clk 0:01:52]} 29. Nb3 {[%clk 0:00:57]}  Rd3 {[%clk 0:01:46]} 30. Kf2 {[%clk 0:00:56]}  Nc3 {[%clk 0:01:45]} 31. Rc1 {[%clk 0:00:46]}  Nd1+ {[%clk 0:01:40]} 32. Rxd1 {[%clk 0:00:32]}  Rxd1 {[%clk 0:01:41]} 33. Bc5 {[%clk 0:00:32]}  Rd3 {[%clk 0:01:39]} 34. Nc1 {[%clk 0:00:26]}  Rdxa3 {[%clk 0:01:38]} 35. h4 {[%clk 0:00:21]}  Rc3 {[%clk 0:01:37]} 36. Be3 {[%clk 0:00:17]}  c5 {[%clk 0:01:38]} 0-1


[Site "https://www.chess.com"]

[Event "Titled Tuesday Blitz March 01 Late 2022"]
[White "Li, Ben"]
[Black "Jakubowska, Anna"]
[WhiteFideId "2089980"]
[BlackFideId "1121952"]
[WhiteElo "2267"]
[BlackElo "1924"]
[Result "1-0"]
[Round "01"]
[TimeControl "180+1"]
[Date "2022.03.02"]
[WhiteClock "0:01:16"]
[BlackClock "0:01:01"]

1. d4 {[%clk 0:03:00]}  d5 {[%clk 0:02:59]} 2. Nf3 {[%clk 0:03:00]}  Nf6 {[%clk 0:02:58]} 3. c4 {[%clk 0:03:00]}  c6 {[%clk 0:02:58]} 4. Nc3 {[%clk 0:03:00]}  e6 {[%clk 0:02:58]} 5. e3 {[%clk 0:03:00]}  Nbd7 {[%clk 0:02:57]} 6. Bd3 {[%clk 0:03:00]}  dxc4 {[%clk 0:02:58]} 7. Bxc4 {[%clk 0:03:01]}  b5 {[%clk 0:02:58]} 8. Bd3 {[%clk 0:03:02]}  a6 {[%clk 0:02:59]} 9. e4 {[%clk 0:03:02]}  c5 {[%clk 0:02:59]} 10. e5 {[%clk 0:03:02]}  cxd4 {[%clk 0:02:56]} 11. Nxb5 {[%clk 0:03:02]}  axb5 {[%clk 0:02:56]} 12. exf6 {[%clk 0:03:02]}  gxf6 {[%clk 0:02:57]} 13. O-O {[%clk 0:03:03]}  Bd6 {[%clk 0:02:55]} 14. Bxb5 {[%clk 0:02:56]}  Qb6 {[%clk 0:02:51]} 15. a4 {[%clk 0:02:49]}  e5 {[%clk 0:02:38]} 16. Re1 {[%clk 0:02:45]}  Kd8 {[%clk 0:02:34]} 17. Nd2 {[%clk 0:02:07]}  Rg8 {[%clk 0:02:31]} 18. Nc4 {[%clk 0:01:50]}  Qb7 {[%clk 0:02:25]} 19. g3 {[%clk 0:01:50]}  Be7 {[%clk 0:02:24]} 20. Bd2 {[%clk 0:01:48]}  Nc5 {[%clk 0:02:20]} 21. Na5 {[%clk 0:01:42]}  Qb6 {[%clk 0:01:36]} 22. Nc6+ {[%clk 0:01:38]}  Ke8 {[%clk 0:01:27]} 23. Nxe5+ {[%clk 0:01:37]}  Kf8 {[%clk 0:01:27]} 24. Bh6+ {[%clk 0:01:37]}  Rg7 {[%clk 0:01:27]} 25. Nc6 {[%clk 0:01:17]}  Bd6 {[%clk 0:01:01]} 26. Qxd4 {[%clk 0:01:16]} 1-0


[Site "https://www.chess.com"]